fUST/lending_fUST_20251231
["ID","MTS","AMOUNT","RATE_DAILY","PERIOD"]
[400173336,1767168646242,-151.0,0.00017336,2]
[400173337,1767168646254,-151.0,0.00017336,2]
[400173338,1767168646263,-151.0,0.00017336,2]
[400173339,1767168646273,-151.0,0.00017336,2]
[400173340,1767168646283,-257.39953178,0.00017336,2]
[400173341,1767168646293,-1000.0,0.00017336,2]
[400173343,1767168646303,-151.0,0.00017336,2]
[400173344,1767168646312,-2436.59773527,0.00017336,2]
[400173346,1767168646322,-151.0,0.00017336,2]
[400173347,1767168646332,-151.0,0.00017336,2]
[400173348,1767168646342,-151.50260762,0.00017336,2]
[400173349,1767168646353,-151.0,0.00017336,2]
[400173350,1767168646363,-151.0,0.00017336,2]
[400173351,1767168646372,-151.0,0.00017336,2]
[400173352,1767168646383,-151.0,0.00017336,2]
[400173353,1767168646393,-151.0,0.00017336,2]
[400173354,1767168646403,-514.84070869,0.00017336,2]
[400173355,1767168646413,-500.0,0.00017336,2]
[400173356,1767168646423,-500.0,0.00017336,2]
[400173357,1767168646433,-500.0,0.00017336,2]
[400173358,1767168646443,-500.0,0.00017336,2]
[400173359,1767168646453,-500.0,0.00017336,2]
[400173360,1767168646463,-500.0,0.00017336,2]
[400173361,1767168646473,-500.0,0.00017336,2]
[400173362,1767168646482,-500.0,0.00017336,2]
[400173363,1767168646492,-500.0,0.00017336,2]
[400173364,1767168646501,-250.0,0.00017336,2]
[400173365,1767168646511,-500.0,0.00017336,2]
[400173366,1767168646520,-250.0,0.00017336,2]
[400173367,1767168646529,-500.0,0.00017336,2]
[400173368,1767168646539,-1651.58290824,0.00017534,2]
[400173369,1767168646549,-4000.0,0.00017534,2]
[400173370,1767168646560,-2453.88298309,0.00017564,2]
[400173371,1767168646570,-236.53722422,0.0001761,8]
[400173372,1767168646579,-1613.0,0.00017625,2]
[400173373,1767168646589,-3508.31856485,0.00017656,2]
[400173374,1767168646599,-2968.24952751,0.00017656,2]
[400173375,1767168646608,-422.38060374,0.00017656,2]
[400173376,1767168646618,-186.0,0.00017781,2]
[400173377,1767168646628,-17693.77277791,0.000178,3]
[400173378,1767168646637,-151.0,0.00017884,2]
[400173379,1767168646647,-533.88981491,0.00017884,2]
[400173380,1767168646657,-2453.88298309,0.00017902,2]
[400173381,1767168646667,-500.0,0.00018047,2]
[400173382,1767168646677,-500.0,0.00018047,2]
[400173383,1767168646688,-347.9611264,0.00018047,2]
[400173384,1767168646698,-1279.85,0.00018047,2]
[400173385,1767168646709,-2453.88298309,0.00018169,2]
[400173386,1767168646719,-1000.0,0.00018236,2]
[400173387,1767168646729,-492.0,0.00018236,2]
[400173388,1767168646738,-553.64373807,0.00018432,2]
[400173389,1767168646748,-2453.88298309,0.00018463,2]
[400173390,1767168646758,-163.026084,0.00018493,2]
[400173391,1767168646768,-9925.60811242,0.00018539,2]
[400173392,1767168646778,-236.53722422,0.00018661,10]
[400173393,1767168646788,-2453.88298309,0.00018726,2]
[400173394,1767168646798,-555.64298499,0.00018785,2]
[400173395,1767168646808,-6148.28029599,0.000188,2]
[400173396,1767168646818,-302.9394212,0.000189,2]
[400173397,1767168646827,-302.90913937,0.000189,2]
[400173398,1767168646837,-2453.88298309,0.00018945,2]
[400173399,1767168646847,-574.12855637,0.0001898,2]
[400173400,1767168646858,-302.9394212,0.00019089,2]
[400173401,1767168646869,-302.90913937,0.00019089,2]
[400173402,1767168646879,-1000.0,0.000191,2]
[400173403,1767168646889,-500.0,0.00019178,2]
[400173404,1767168646899,-500.0,0.00019178,2]
[400173405,1767168646909,-500.0,0.00019178,2]
[400173406,1767168646919,-500.0,0.00019178,2]
[400173407,1767168646928,-167.95184871,0.00019178,2]
[400173409,1767168646939,-500.0,0.00019178,2]
[400173410,1767168646949,-500.0,0.00019178,2]
[400173411,1767168646959,-500.0,0.00019178,2]
[400173412,1767168646969,-500.0,0.00019178,2]
[400173413,1767168646979,-166.25,0.000192,2]
[400173414,1767168646989,-162.4,0.000192,2]
[400173415,1767168646998,-1380.56,0.000192,2]
[400173416,1767168647008,-14885.98,0.000192,2]
[400173417,1767168647018,-166.47,0.000192,2]
[400173418,1767168647027,-302.9394212,0.00019278,2]
[400173419,1767168647138,-302.90913937,0.00019278,2]
[400173420,1767168647148,-1174.16213624,0.00019356,2]
[400173421,1767168647159,-2258.0,0.00019368,2]
[400173422,1767168647169,-2453.88298309,0.00019407,2]
[400173423,1767168647179,-302.9394212,0.00019467,2]
[400173424,1767168647189,-302.90913937,0.00019467,2]
[400173425,1767168647198,-595.37131296,0.00019528,2]
[400173426,1767168647208,-186.0,0.0001954,2]
[400173427,1767168647218,-1489.01566137,0.00019611,2]
[400173428,1767168647229,-2453.88298309,0.00019632,2]
[400173430,1767168647238,-302.9394212,0.00019656,2]
[400173431,1767168647249,-302.90913937,0.00019656,2]
[400173432,1767168647262,-8846.86,0.000197,3]
[400173433,1767168647271,-236.53722422,0.00019711,11]
[400173434,1767168647281,-454.40913181,0.00019845,4]
[400173435,1767168647291,-454.36370906,0.00019845,4]
[400173436,1767168647302,-2453.88298309,0.00019873,2]
[400173437,1767168647311,-1041.66666667,0.00019966,2]
[400173438,1767168647322,-1003.0,0.0002,2]
[400173439,1767168647332,-342711.0,0.0002,2]
[400173440,1767168647342,-155.015211,0.0002,2]
[400173441,1767168647351,-179.55824252,0.0002,2]
[400173442,1767168647361,-1384.295523,0.0002,2]
[400173443,1767168647371,-1384.295523,0.0002,2]
[400173444,1767168647380,-1384.295523,0.0002,2]
[400173445,1767168647390,-1384.295523,0.0002,2]
[400173446,1767168647399,-210.23175629,0.0002,2]
[400173447,1767168647409,-151.0,0.0002,2]
[400173448,1767168647418,-194.747586,0.0002,2]
[400173449,1767168647428,-194.747586,0.0002,2]
[400173450,1767168647437,-194.747586,0.0002,2]
[400173451,1767168647447,-194.747586,0.0002,2]
[400173452,1767168647457,-156.190121,0.0002,2]
[400173453,1767168647467,-156.190121,0.0002,2]
[400173454,1767168647476,-156.190121,0.0002,2]
[400173455,1767168647486,-156.190121,0.0002,2]
[400173456,1767168647496,-454.40913181,0.00020034,4]
[400173457,1767168647505,-454.36370906,0.00020034,4]
[400173458,1767168647516,-1000.0,0.00020059,2]
[400173459,1767168647525,-791.0,0.00020059,2]
[400173460,1767168647535,-617.40005154,0.00020076,2]
[400173461,1767168647545,-2453.88298309,0.00020112,2]
[400173463,1767168647555,-205.5071911,0.00020128,2]
[400173464,1767168647566,-962.386448,0.00020187,2]
[400173465,1767168647576,-14885.98,0.000202,2]
[400173466,1767168647586,-454.40913181,0.00020223,4]
[400173467,1767168647595,-454.36370906,0.00020223,4]
[400173468,1767168647604,-822.02876442,0.0002027,2]
[400173469,1767168647614,-1849.56471994,0.0002027,2]
[400173470,1767168647623,-3288.11505767,0.0002027,2]
[400173471,1767168647633,-5137.6797776,0.0002027,2]
[400173472,1767168647643,-166.25,0.000203,2]
[400173473,1767168647652,-1380.56,0.000203,2]
[400173474,1767168647663,-2453.88298309,0.0002032,2]
[400173475,1767168647672,-454.40913181,0.00020412,4]
[400173476,1767168647682,-454.36370906,0.00020412,4]
[400173477,1767168647691,-454.40913187,0.00020601,4]
[400173478,1767168647701,-454.7422319,0.00020601,4]
[400173479,1767168647711,-640.24385345,0.00020624,2]
[400173480,1767168647720,-2453.88298309,0.00020685,2]
[400173481,1767168647730,-236.53722422,0.00020761,13]
[400173482,1767168647739,-613.79166947,0.00020785,2]
[400173483,1767168647749,-151.0,0.00020865,2]
[400173484,1767168647758,-151.0,0.00020865,2]
[400173485,1767168647772,-6148.28029599,0.00020865,2]
[400173486,1767168647782,-2000.0,0.00020991,7]
[400173487,1767168647791,-501.19,0.00021,7]
[400173488,1767168647801,-2453.88298309,0.00021,2]
[400173489,1767168647811,-233.96989355,0.00021066,5]
[400173490,1767168647820,-350.38,0.00021164,30]
[400173491,1767168647829,-663.93287602,0.00021172,2]
[400173492,1767168647839,-2453.88298309,0.00021234,2]
[400173493,1767168647848,-3162.0,0.00021283,2]
[400173494,1767168647858,-186.0,0.00021299,2]
[400173495,1767168647868,-201.46004015,0.00021337,2]
[400173497,1767168647877,-805.84016062,0.00021337,2]
[400173498,1767168647887,-1813.14036138,0.00021337,2]
[400173499,1767168647896,-2453.88298309,0.00021422,2]
[400173500,1767168647906,-1174.16213624,0.00021552,2]
[400173501,1767168647916,-688.49839244,0.0002172,2]
[400173502,1767168647925,-14885.98,0.000218,2]
[400173503,1767168647938,-236.53722422,0.00021811,14]
[400173504,1767168647948,-2453.88298309,0.00021854,2]
[400173505,1767168647957,-1423.54,0.00021917,2]
[400173506,1767168647967,-606.03,0.00021917,2]
[400173507,1767168647977,-388.31492034,0.00021917,2]
[400173508,1767168647986,-760.57,0.00021917,2]
[400173509,1767168647996,-500.0,0.00021917,2]
[400173510,1767168648006,-224.92658771,0.00021917,2]
[400173511,1767168648015,-503.00820269,0.00021917,2]
[400173512,1767168648025,-506.55449777,0.00021917,2]
[400173513,1767168648034,-500.0,0.00021917,2]
[400173514,1767168648043,-500.0,0.00021917,2]
[400173515,1767168648053,-277.46495324,0.00021917,2]
[400173516,1767168648064,-181.58814641,0.00021917,2]
[400173517,1767168648074,-419.55533198,0.00021917,2]
[400173518,1767168648084,-3454.69,0.00021917,2]
[400173519,1767168648094,-572.01801726,0.00021917,2]
[400173520,1767168648103,-500.0,0.00021917,2]
[400173521,1767168648113,-6232.36,0.00021917,2]
[400173522,1767168648123,-500.0,0.00021917,2]
[400173523,1767168648133,-1388.45,0.00021917,2]
[400173524,1767168648143,-163.026084,0.00021918,2]
[400173525,1767168648152,-150.0,0.00021918,2]
[400173526,1767168648162,-2453.88298309,0.00021941,2]
[400173527,1767168648171,-160.73,0.00022,7]
[400173528,1767168648180,-1000.0,0.00022065,10]
[400173529,1767168648190,-1000.0,0.00022065,10]
[400173530,1767168648199,-700.76,0.00022172,30]
[400173531,1767168648208,-1423.54,0.00022191,2]
[400173532,1767168648218,-760.57,0.00022191,2]
[400173533,1767168648227,-422.18560449,0.00022191,2]
[400173534,1767168648237,-518.18840294,0.00022191,2]
[400173535,1767168648248,-510.62079878,0.00022191,2]
[400173536,1767168648260,-3454.69,0.00022191,2]
[400173537,1767168648270,-500.0,0.00022191,2]
[400173538,1767168648279,-170.58122674,0.00022191,2]
[400173539,1767168648290,-682.32490694,0.00022191,2]
[400173540,1767168648299,-1535.23104062,0.00022191,2]
[400173541,1767168648309,-2729.29962776,0.00022191,2]
[400173542,1767168648318,-167.60060427,0.00022191,2]
[400173543,1767168648329,-301.68108768,0.00022191,2]
[400173544,1767168648339,-656.82929372,0.00022191,2]
[400173545,1767168648348,-1182.2927287,0.00022191,2]
[400173546,1767168648358,-2101.85373991,0.00022191,2]
[400173547,1767168648368,-6232.36,0.00022191,2]
[400173548,1767168648378,-562.74320886,0.00022191,2]
[400173549,1767168648387,-1388.45,0.00022191,2]
[400173550,1767168648397,-691.08882234,0.00022195,2]
[400173551,1767168648407,-1243.95988021,0.00022195,2]
[400173552,1767168648417,-366.42033155,0.00022195,2]
[400173553,1767168648428,-659.55659679,0.00022195,2]
[400173554,1767168648438,-1380.56,0.000222,14]
[400173555,1767168648447,-713.97283296,0.00022268,2]
[400173556,1767168648457,-2453.88298309,0.00022285,2]
[400173557,1767168648467,-1924.63787868,0.00022303,5]
[400173558,1767168648477,-151.0,0.00022303,2]
[400173559,1767168648487,-158.312179,0.00022303,2]
[400173560,1767168648496,-9925.60811242,0.00022309,2]
[400173562,1767168648505,-342.0,0.00022372,2]
[400173563,1767168648514,-1423.54,0.00022465,2]
[400173564,1767168648524,-760.57,0.00022465,2]
[400173565,1767168648533,-3454.69,0.00022465,2]
[400173566,1767168648542,-500.0,0.00022465,2]
[400173567,1767168648552,-6232.36,0.00022465,2]
[400173568,1767168648562,-1388.45,0.00022465,2]
[400173569,1767168648572,-300.0,0.00022466,2]
[400173570,1767168648581,-800.0,0.00022545,2]
[400173571,1767168648591,-800.0,0.00022548,2]
[400173572,1767168648600,-423.0,0.00022563,2]
[400173573,1767168648611,-800.0,0.00022593,2]
[400173574,1767168648620,-162.4,0.000226,7]
[400173575,1767168648630,-166.25,0.000226,7]
[400173576,1767168648639,-166.61935698,0.00022603,7]
[400173577,1767168648649,-800.0,0.00022604,2]
[400173578,1767168648659,-800.0,0.00022612,2]
[400173579,1767168648669,-800.0,0.00022619,2]
[400173580,1767168648679,-800.0,0.00022631,2]
[400173581,1767168648688,-800.0,0.00022671,2]
[400173582,1767168648698,-800.0,0.00022688,2]
[400173583,1767168648708,-800.0,0.0002269,2]
[400173584,1767168648718,-800.0,0.00022697,2]
[400173585,1767168648727,-2453.8829832,0.00022698,2]
[400173586,1767168648737,-17693.72,0.000227,3]
[400173587,1767168648747,-800.0,0.00022704,2]
[400173588,1767168648757,-800.0,0.00022712,2]
[400173589,1767168648766,-800.0,0.00022716,2]
[400173590,1767168648775,-606.03,0.00022726,2]
[400173591,1767168648784,-500.0,0.00022726,2]
[400173592,1767168648794,-500.0,0.00022726,2]
[400173593,1767168648803,-1279.85,0.00022726,2]
[400173595,1767168648812,-14952.0649711,0.00022727,2]
[400173596,1767168648822,-800.0,0.00022733,2]
[400173597,1767168648832,-800.0,0.00022736,2]
[400173598,1767168648841,-1423.54,0.00022739,2]
[400173599,1767168648850,-760.57,0.00022739,2]
[400173600,1767168648860,-3454.69,0.00022739,2]
[400173601,1767168648869,-472.89680193,0.00022739,2]
[400173602,1767168648879,-6232.36,0.00022739,2]
[400173603,1767168648888,-1388.45,0.00022739,2]
[400173604,1767168648898,-152.24102269,0.00022742,2]
[400173605,1767168648907,-727.76043439,0.00022745,5]
[400173606,1767168648917,-800.0,0.00022753,2]
[400173607,1767168648927,-606.03,0.00022769,2]
[400173608,1767168648936,-606.03,0.00022769,2]
[400173609,1767168648945,-606.03,0.00022769,2]
[400173610,1767168648954,-500.0,0.00022769,2]
[400173611,1767168648963,-500.0,0.00022769,2]
[400173612,1767168648972,-500.0,0.00022769,2]
[400173613,1767168648982,-500.0,0.00022769,2]
[400173614,1767168648992,-500.0,0.00022769,2]
[400173615,1767168649001,-500.0,0.00022769,2]
[400173616,1767168649011,-1279.85,0.00022769,2]
[400173617,1767168649020,-1279.85,0.00022769,2]
[400173618,1767168649029,-1279.85,0.00022769,2]
[400173619,1767168649039,-226648.31255417,0.0002277,2]
[400173623,1767168649843,-216.83598831,0.00017336,2]
[400173644,1767168674242,-507.79093378,0.00010999,2]
[400173645,1767168674271,-503.83498449,0.00010999,2]
[400173706,1767168706490,217.01,0.0001,2]
[400173707,1767168722411,300.0,0.00010998,2]
[400173708,1767168722869,300.0,0.00010998,2]
[400173727,1767168744335,507.1640978,0.00010101,2]
[400173760,1767168767383,-8336.12007517,0.00011,2]
[400173762,1767168767634,-10000.01,0.00011,2]
[400173764,1767168767881,-10000.01,0.00011,2]
[400173765,1767168768116,-10000.01,0.00011,2]
[400173767,1767168768339,-4436.68215272,0.00011,2]
[400173782,1767168782920,300.0,0.00010999,2]
[400173799,1767168792903,1200.0,0.00010999,2]
[400173879,1767168842776,300.0,0.00010999,2]
[400173880,1767168851071,807.32324909,0.00011,2]
[400173885,1767168854527,1586.9666071,0.00010101,2]
[400173900,1767168902681,300.0,0.00010999,2]
[400173901,1767168903254,300.0,0.00010999,2]
[400173902,1767168909661,1200.0,0.00010999,2]
[400173903,1767168910561,-500.0,0.00011,2]
[400173904,1767168910585,-500.0,0.00011,2]
[400173905,1767168910608,-500.0,0.00011,2]
[400173906,1767168910629,-614.04964641,0.00011,2]
[400173907,1767168910653,-500.0,0.00011,2]
[400173908,1767168910677,-500.0,0.00011,2]
[400173909,1767168910701,-622.19540693,0.00011,2]
[400173910,1767168910725,-500.0,0.00011,2]
[400173911,1767168910749,-500.0,0.00011,2]
[400173912,1767168910772,-263.75494666,0.00011,2]
[400173914,1767168918678,-236.24505334,0.00011,2]
[400173915,1767168918729,-500.0,0.00011,2]
[400173916,1767168918777,-500.0,0.00011,2]
[400173917,1767168918801,-500.0,0.00011,2]
[400173918,1767168918824,-500.0,0.00011,2]
[400173919,1767168918847,-500.0,0.00011,2]
[400173920,1767168918870,-500.0,0.00011,2]
[400173921,1767168918892,-500.0,0.00011,2]
[400173922,1767168918916,-500.0,0.00011,2]
[400173923,1767168918940,-500.0,0.00011,2]
[400173924,1767168918964,-263.75494666,0.00011,2]
[400173932,1767168927142,-236.24505334,0.00011,2]
[400173933,1767168927164,-336.50734346,0.00011,2]
[400173934,1767168927184,-500.0,0.00011,2]
[400173935,1767168927208,-605.28027375,0.00011,2]
[400173936,1767168927232,-500.0,0.00011,2]
[400173937,1767168927255,-190.41235184,0.00011,2]
[400173938,1767168927279,-500.0,0.00011,2]
[400173939,1767168927304,-500.0,0.00011,2]
[400173940,1767168927329,-500.0,0.00011,2]
[400173941,1767168927354,-500.0,0.00011,2]
[400173942,1767168927379,-500.0,0.00011,2]
[400173943,1767168927403,-131.55497761,0.00011,2]
[400173944,1767168930001,-368.44502239,0.00011,2]
[400173945,1767168930032,-500.0,0.00011,2]
[400173946,1767168930058,-500.0,0.00011,2]
[400173947,1767168930085,-500.0,0.00011,2]
[400173948,1767168930108,-500.0,0.00011,2]
[400173949,1767168930131,-500.0,0.00011,2]
[400173950,1767168930154,-500.0,0.00011,2]
[400173951,1767168930179,-500.0,0.00011,2]
[400173952,1767168930203,-500.0,0.00011,2]
[400173953,1767168930226,-500.0,0.00011,2]
[400173954,1767168930250,-131.55497761,0.00011,2]
[400173967,1767168937378,-368.44502239,0.00011,2]
[400173968,1767168937402,-500.0,0.00011,2]
[400173970,1767168937427,-500.0,0.00011,2]
[400173971,1767168937449,-500.0,0.00011,2]
[400173972,1767168937472,-500.0,0.00011,2]
[400173973,1767168937496,-500.0,0.00011,2]
[400173974,1767168937521,-584.36258337,0.00011,2]
[400173975,1767168937546,-500.0,0.00011,2]
[400173976,1767168937571,-500.0,0.00011,2]
[400173977,1767168937595,-500.0,0.00011,2]
[400173978,1767168937621,-47.19239424,0.00011,2]
[400173989,1767168939169,-452.80760576,0.00011,2]
[400173990,1767168939194,-500.0,0.00011,2]
[400173991,1767168939219,-500.0,0.00011,2]
[400173993,1767168939245,-500.0,0.00011,2]
[400173994,1767168939269,-500.0,0.00011,2]
[400173995,1767168939294,-500.0,0.00011,2]
[400173996,1767168939318,-500.0,0.00011,2]
[400173997,1767168939353,-500.0,0.00011,2]
[400173999,1767168939386,-615.23860577,0.00011,2]
[400174000,1767168939416,-431.95378847,0.00011,2]
[400174013,1767168942107,-183.2848173,0.00011,2]
[400174014,1767168942135,-615.23860577,0.00011,2]
[400174015,1767168942167,-615.23860577,0.00011,2]
[400174017,1767168942198,-615.23860577,0.00011,2]
[400174019,1767168942228,-615.23860577,0.00011,2]
[400174020,1767168942254,-615.23860577,0.00011,2]
[400174021,1767168942283,-615.23860577,0.00011,2]
[400174022,1767168942316,-615.23860577,0.00011,2]
[400174023,1767168942348,-510.04494231,0.00011,2]
[400174030,1767168944233,-105.19366346,0.00011,2]
[400174031,1767168944258,-615.23860577,0.00011,2]
[400174033,1767168944288,-615.23860577,0.00011,2]
[400174034,1767168944316,-615.23860577,0.00011,2]
[400174035,1767168944345,-701.37201058,0.00011,2]
[400174036,1767168944374,-701.37201058,0.00011,2]
[400174037,1767168944405,-701.37201058,0.00011,2]
[400174038,1767168944434,-701.37201058,0.00011,2]
[400174039,1767168944459,-243.60247691,0.00011,2]
[400174041,1767168947947,-457.76953367,0.00011,2]
[400174042,1767168947971,-201.70971932,0.00011,2]
[400174043,1767168948004,-4340.52074701,0.00011001,2]
[400174045,1767168949718,-5000.0,0.00011001,2]
[400174047,1767168951701,-5000.0,0.00011001,2]
[400174048,1767168953568,-5000.0,0.00011001,2]
[400174050,1767168956169,-5000.0,0.00011001,2]
[400174051,1767168959292,-5000.0,0.00011001,2]
[400174052,1767168962487,300.0,0.00011,2]
[400174053,1767168963502,-5000.0,0.00011001,2]
[400174056,1767168966762,-5000.0,0.00011001,2]
[400174057,1767168969380,-5000.0,0.00011001,2]
[400174063,1767168973232,-5000.0,0.00011001,2]
[400174065,1767168977833,-5000.0,0.00011001,2]
[400174067,1767168980415,-5000.0,0.00011001,2]
[400174101,1767169023081,300.0,0.00011,2]
[400174124,1767169069701,151.0,0.00011,2]
[400174127,1767169082781,195.0,0.00011,2]
[400174128,1767169082985,300.0,0.00011,2]
[400174131,1767169092314,500.0,0.00011,2]
[400174133,1767169092408,187.82359465,0.00011,2]
[400174136,1767169094988,1200.0,0.00011,2]
[400174140,1767169099767,5000.0,0.00011001,2]
[400174144,1767169103985,-5871.90654916,0.00011001,2]
[400174145,1767169104213,-10000.01,0.00011001,2]
[400174146,1767169104438,-10000.01,0.00011001,2]
[400174147,1767169104651,-10000.01,0.00011001,2]
[400174148,1767169104829,-10000.01,0.00011001,2]
[400174149,1767169105105,-10000.01,0.00011001,2]
[400174150,1767169105321,-10000.01,0.00011001,2]
[400174151,1767169105708,-10000.01,0.00011001,2]
[400174152,1767169105880,-10000.01,0.00011001,2]
[400174163,1767169111848,500.0,0.00011,2]
[400174164,1767169111928,500.0,0.00011,2]
[400174165,1767169112006,500.0,0.00011,2]
[400174166,1767169112084,500.0,0.00011,2]
[400174167,1767169112177,500.0,0.00011,2]
[400174169,1767169112258,500.0,0.00011,2]
[400174170,1767169112355,500.0,0.00011,2]
[400174171,1767169112463,500.0,0.00011,2]
[400174172,1767169112566,500.0,0.00011,2]
[400174173,1767169112670,500.0,0.00011,2]
[400174174,1767169112745,500.0,0.00011,2]
[400174176,1767169112818,500.0,0.00011,2]
[400174177,1767169112894,500.0,0.00011,2]
[400174178,1767169113006,500.0,0.00011,2]
[400174196,1767169124099,772.38356146,0.00010904,2]
[400174198,1767169130673,500.0,0.00011,2]
[400174199,1767169130965,500.0,0.00011,2]
[400174200,1767169131041,422.80632549,0.00011,2]
[400174201,1767169131123,500.0,0.00011,2]
[400174202,1767169131202,304.82011305,0.00011,2]
[400174203,1767169131273,195.17988695,0.00011,2]
[400174204,1767169131351,500.0,0.00011,2]
[400174205,1767169131449,500.0,0.00011,2]
[400174206,1767169131543,500.0,0.00011,2]
[400174207,1767169131651,500.0,0.00011,2]
[400174213,1767169142439,300.0,0.00011,2]
[400174218,1767169148500,500.0,0.00011,2]
[400174219,1767169148596,250.0,0.00011,2]
[400174237,1767169201279,300.0,0.00011,2]
[400174238,1767169202185,300.0,0.00011,2]
[400174239,1767169202268,300.0,0.00011,2]
[400174240,1767169208359,300.0,0.00011,2]
[400174241,1767169209348,1200.0,0.00011,2]
[400174247,1767169228839,151.0,0.00011001,2]
[400174248,1767169229483,151.0,0.00011001,2]
[400174249,1767169230083,151.0,0.00011001,2]
[400174250,1767169230459,-5000.0,0.00011001,2]
[400174251,1767169230858,151.0,0.00011001,2]
[400174252,1767169231765,-5000.0,0.00011001,2]
[400174253,1767169232964,-5000.0,0.00011001,2]
[400174254,1767169234052,-5000.0,0.00011001,2]
[400174255,1767169235282,-5000.0,0.00011001,2]
[400174256,1767169235453,290.31903463,0.00011001,2]
[400174257,1767169236595,-5000.0,0.00011001,2]
[400174258,1767169237841,-5000.0,0.00011001,2]
[400174259,1767169239221,-5000.0,0.00011001,2]
[400174260,1767169241756,-5000.0,0.00011001,2]
[400174261,1767169243414,-5000.0,0.00011001,2]
[400174262,1767169248189,-5000.0,0.00011001,2]
[400174263,1767169249638,-5000.0,0.00011001,2]
[400174264,1767169251547,-5000.0,0.00011001,2]
[400174265,1767169253609,-5000.0,0.00011001,2]
[400174266,1767169255655,-5000.0,0.00011001,2]
[400174267,1767169257078,-5000.0,0.00011001,2]
[400174268,1767169259594,-5000.0,0.00011001,2]
[400174269,1767169260961,-5000.0,0.00011001,2]
[400174271,1767169262392,300.0,0.00011,2]
[400174272,1767169268597,-5000.0,0.00011001,2]
[400174275,1767169270169,-5000.0,0.00011001,2]
[400174279,1767169303152,389.358,0.00010781,2]
[400174299,1767169322635,300.0,0.00011,2]
[400174309,1767169349285,-565.16916983,0.00011001,2]
[400174310,1767169351388,-207.30691018,0.00011001,2]
[400174311,1767169353546,-190.95421658,0.00011001,2]
[400174312,1767169355851,-177.02289171,0.00011001,2]
[400174313,1767169358486,-583.0,0.00011001,2]
[400174314,1767169361256,-190.46,0.00011001,2]
[400174315,1767169363578,2232.213552,0.00011001,2]
[400174316,1767169363927,-237.07639939,0.00011001,2]
[400174317,1767169371833,238.93952642,0.00011001,2]
[400174318,1767169371902,4421.67352407,0.00011001,2]
[400174319,1767169382726,300.0,0.00011,2]
[400174324,1767169394279,1200.0,0.00011,2]
[400174333,1767169412443,500.0,0.00011,2]
[400174334,1767169412528,500.0,0.00011,2]
[400174335,1767169412609,500.0,0.00011,2]
[400174336,1767169412691,500.0,0.00011,2]
[400174337,1767169412777,500.0,0.00011,2]
[400174338,1767169412853,186.02014765,0.00011,2]
[400174339,1767169412933,500.0,0.00011,2]
[400174340,1767169413008,504.471551,0.00011,2]
[400174341,1767169413089,387.84477728,0.00011,2]
[400174342,1767169413163,112.15522272,0.00011,2]
[400174343,1767169413244,500.0,0.00011,2]
[400174344,1767169413324,500.0,0.00011,2]
[400174345,1767169413408,500.0,0.00011,2]
[400174346,1767169413491,500.0,0.00011,2]
[400174347,1767169413572,500.0,0.00011,2]
[400174348,1767169413658,500.0,0.00011,2]